bitfinex-derivatives/quotes_SOLF0:USTF0_20251109
["timestamp","ask_amount","ask_price","bid_price","bid_amount"]
[1762677480060,1.89304043,159.23,159.21,2.88]
[1762677483069,0.04189989,159.23,159.21,8.5341]
[1762677483273,0.04189989,159.23,159.22,2.97]
[1762677485778,5.82100095,159.31,159.19,0.04508367]
[1762677485779,6.41335317,159.3,159.24,2.97]
[1762677485970,1.85114054,159.3,159.24,2.97]
[1762677486171,5.6519,159.28,159.24,2.97]
[1762677486373,1.85114054,159.3,159.24,2.97]
[1762677486768,0.04753181,159.29,159.25,0.04750216]
[1762677486973,0.04753181,159.29,159.26,2.97]
[1762677487466,5.69903181,159.29,159.26,2.97]
[1762677488070,1.85114054,159.28,159.26,2.97]
[1762677488277,1.89867235,159.29,159.26,2.97]
[1762677489375,1.89867235,159.29,159.27,2.97]
[1762677492182,7.55017235,159.29,159.27,2.97]
[1762677494678,7.55017235,159.29,159.25,5.70030216]
[1762677494679,1.89867235,159.29,159.25,0.04750216]
[1762677494868,0.04753181,159.29,159.25,3.01750216]
[1762677496096,0.04753181,159.29,159.28,2.97]
[1762677502888,5.69923181,159.29,159.26,2.97]
[1762677503093,0.04753181,159.29,159.25,3.01750216]
[1762677503591,5.6522,159.27,159.25,3.01750216]
[1762677503993,5.6522,159.27,159.25,0.04750216]
[1762677504484,4.56221263,159.26,159.25,0.04750216]
[1762677505689,4.56221263,159.26,159.2,2.97]
[1762677505891,2.89111328,159.27,159.2,2.97]
[1762677505892,4.56221263,159.25,159.2,2.97]
[1762677506188,4.57168911,159.24,159.2,2.97]
[1762677506392,4.57168911,159.26,159.2,2.97]
[1762677506590,4.57168911,159.29,159.2,2.97]
[1762677506798,0.04090259,159.26,159.24,2.97]
[1762677506997,0.04055315,159.27,159.24,2.97]
[1762677507194,0.04055315,159.27,159.24,3.01608605]
[1762677510298,4.57542825,159.26,159.24,0.04608605]
[1762677510502,4.57579142,159.25,159.24,0.04608605]
[1762677512496,0.04055315,159.27,159.24,3.11608605]
[1762677512702,0.04055315,159.27,159.25,3.07]
[1762677513895,0.04055315,159.27,159.25,8.7228]
[1762677514100,0.04055315,159.27,159.26,3.07]
[1762677514902,8.71211423,159.36,159.28,3.07]
[1762677515104,4.57809052,159.35,159.28,3.07]
[1762677515304,4.57809052,159.34,159.28,3.07]
[1762677515504,4.57809052,159.33,159.28,3.07]
[1762677515704,4.57809052,159.32,159.28,3.07]
[1762677516005,10.22889052,159.31,159.28,3.1129777]
[1762677516205,4.57809052,159.3,159.28,3.1129777]
[1762677516408,5.6508,159.31,159.28,3.1129777]
[1762677517209,4.5783389,159.3,159.28,3.1129777]
[1762677517406,5.6508,159.31,159.28,3.1129777]
[1762677517607,4.57824327,159.3,159.28,3.1129777]
[1762677517903,5.6511,159.3,159.28,0.0429777]
[1762677518103,0.04794428,159.32,159.28,3.1129777]
[1762677518309,4.57902418,159.31,159.28,3.1129777]
[1762677518499,0.04794428,159.32,159.28,3.1129777]
[1762677518700,4.57803908,159.31,159.28,3.1129777]
[1762677518999,0.04794428,159.32,159.28,3.1129777]
[1762677519207,10.22873565,159.31,159.28,3.1129777]
[1762677519507,5.6507,159.31,159.28,3.1129777]
[1762677524508,4.58109474,159.3,159.28,0.0429777]
[1762677524804,4.54184983,159.31,159.28,3.1129777]
[1762677524805,4.58109474,159.29,159.28,3.1129777]
[1762677525008,10.19264983,159.31,159.28,3.1129777]
[1762677525201,4.58105076,159.3,159.28,3.1129777]
[1762677525400,10.19496092,159.31,159.28,3.1129777]
[1762677525607,4.58121103,159.3,159.29,2.95]
[1762677525813,0.04794428,159.32,159.29,2.95]
[1762677526005,4.58100204,159.31,159.29,2.95]
[1762677526309,0.04794428,159.32,159.29,2.95]
[1762677526510,4.58146103,159.31,159.29,2.95]
[1762677526712,0.04794428,159.32,159.29,2.95]
[1762677527601,0.04794428,159.32,159.31,2.95]
[1762677528999,0.04794428,159.32,159.29,2.95]
[1762677529000,4.63079069,159.32,159.29,2.95]
[1762677529308,0.04794428,159.32,159.29,2.95]
[1762677530312,0.04794428,159.32,159.3,2.95]
[1762677533122,0.04794428,159.32,159.3,8.601]
[1762677533410,0.04794428,159.32,159.31,2.95]
[1762677540417,0.04794428,159.32,159.28,0.0429777]
[1762677540418,0.04794428,159.32,159.28,2.9929777]
[1762677541021,0.04794428,159.32,159.3,2.95]
[1762677542715,0.04794428,159.32,159.31,2.91]
[1762677554733,0.04794428,159.32,159.29,2.91]
[1762677554946,4.58231728,159.31,159.29,2.91]
[1762677555146,4.59158451,159.32,159.29,2.91]
[1762677555445,10.23449348,159.31,159.28,2.9529777]
[1762677555643,5.6507,159.31,159.28,2.9529777]
[1762677555850,4.58416161,159.3,159.28,2.9529777]
[1762677556049,5.6507,159.31,159.28,2.9529777]
[1762677556251,10.23526161,159.3,159.28,2.9529777]
[1762677556449,4.58416161,159.29,159.28,2.9529777]
[1762677557353,4.58416161,159.29,159.28,0.0429777]
[1762677558351,9.13769848,159.29,159.28,0.0429777]
[1762677559152,71.57769848,159.29,159.28,0.0429777]
[1762677559745,71.57769848,159.29,159.25,2.91]
[1762677559948,4.58416161,159.28,159.25,2.91]
[1762677560148,4.58416161,159.27,159.25,2.91]
[1762677560348,62.44,159.29,159.25,2.91]
[1762677560548,4.57885411,159.28,159.24,2.91]
[1762677560748,4.57885411,159.27,159.24,2.95074565]
[1762677560949,4.5788867,159.26,159.24,2.95074565]
[1762677561151,0.04780362,159.28,159.24,2.95074565]
[1762677561356,4.57925818,159.27,159.24,2.95074565]
[1762677561653,4.57925818,159.26,159.24,2.95074565]
[1762677561855,0.04780362,159.28,159.24,2.95074565]
[1762677562055,5.6526,159.26,159.24,2.95074565]
[1762677563152,4.55052765,159.27,159.24,2.95074565]
[1762677563355,4.57761986,159.26,159.24,2.95074565]
[1762677563657,0.04780362,159.28,159.24,2.95074565]
[1762677563851,14.7791645,159.27,159.24,2.95074565]
[1762677564051,4.57641602,159.26,159.24,2.95074565]
[1762677564260,5.6522,159.27,159.24,2.95074565]
[1762677564461,4.57518681,159.26,159.24,2.95074565]
[1762677564761,5.6522,159.27,159.24,2.95074565]
[1762677565062,4.57518681,159.26,159.24,2.95074565]
[1762677565260,5.6522,159.27,159.24,2.95074565]
[1762677565456,4.57406149,159.26,159.24,2.95074565]
[1762677565652,0.04780362,159.28,159.24,2.95074565]
[1762677565853,4.57406149,159.27,159.24,2.95074565]
[1762677566059,4.57406149,159.26,159.24,2.95074565]
[1762677566263,4.595095,159.28,159.24,2.95074565]
[1762677566450,4.57293471,159.27,159.24,2.95074565]
[1762677566654,4.595095,159.28,159.24,2.95074565]
[1762677566963,10.22513471,159.27,159.24,2.95074565]
[1762677567161,5.6522,159.27,159.24,2.95074565]
[1762677568059,4.595095,159.28,159.24,2.95074565]
[1762677568252,4.57220597,159.27,159.24,2.95074565]
[1762677568456,5.6521,159.27,159.24,2.95074565]
[1762677570160,10.246995,159.28,159.25,2.91]
[1762677570462,4.57028962,159.27,159.25,2.91]
[1762677570661,0.04780362,159.28,159.25,2.91]
[1762677570863,4.56969146,159.27,159.25,2.91]
[1762677571061,0.04780362,159.28,159.25,2.91]
[1762677571263,4.56969146,159.27,159.25,2.91]
[1762677571454,0.04780362,159.28,159.25,2.91]
[1762677571655,4.56915172,159.27,159.25,2.91]
[1762677571853,0.04780362,159.28,159.25,2.91]
[1762677572059,4.56915172,159.27,159.25,2.91]
[1762677572358,5.69960362,159.28,159.25,2.91]
[1762677572560,4.56874749,159.27,159.25,2.91]
[1762677572754,5.69960362,159.28,159.25,2.91]
[1762677572953,4.56874749,159.27,159.25,2.91]
[1762677573150,5.69960362,159.28,159.25,2.91]
[1762677573349,4.56876211,159.27,159.25,2.91]
[1762677573559,5.69960362,159.28,159.25,2.91]
[1762677573759,4.56843786,159.27,159.25,2.91]
[1762677573951,5.69960362,159.28,159.25,2.91]
[1762677574254,4.56843786,159.27,159.25,2.91]
[1762677574565,5.69960362,159.28,159.25,2.91]
[1762677574865,4.5679592,159.27,159.25,2.91]
[1762677575064,5.69960362,159.28,159.25,2.91]
[1762677575265,4.5679592,159.27,159.25,2.91]
[1762677575563,5.69960362,159.28,159.25,2.91]
[1762677575766,4.56752066,159.27,159.25,2.91]
[1762677575954,5.69960362,159.28,159.25,2.91]
[1762677576158,4.56752066,159.27,159.25,2.91]
[1762677576358,5.69960362,159.28,159.25,2.91]
[1762677576560,4.56713947,159.27,159.25,2.91]
[1762677576866,5.69960362,159.28,159.25,2.91]
[1762677577066,4.56713947,159.27,159.25,2.91]
[1762677577260,5.69960362,159.28,159.25,2.91]
[1762677577565,4.5668168,159.27,159.25,2.91]
[1762677577764,5.69960362,159.28,159.25,2.91]
[1762677577966,4.56681683,159.27,159.25,2.91]
[1762677578165,5.69960362,159.28,159.25,2.91]
[1762677578463,10.26615691,159.28,159.25,2.91]
[1762677579364,5.69960362,159.28,159.25,2.91]
[1762677584273,4.56920603,159.27,159.25,2.91]
[1762677584570,5.69960362,159.28,159.25,2.91]
[1762677584770,4.56934687,159.27,159.25,2.91]
[1762677584972,5.69960362,159.28,159.25,2.91]
[1762677585161,4.56934729,159.27,159.25,2.91]
[1762677585358,0.04780362,159.28,159.25,2.91]
[1762677585670,10.22158975,159.27,159.25,2.91]
[1762677585873,5.6521,159.27,159.25,2.91]
[1762677589974,62.42,159.26,159.25,2.91]
[1762677595673,66.98609213,159.26,159.25,2.91]
[1762677595980,62.42,159.26,159.25,2.91]
[1762677596383,66.98746859,159.26,159.25,2.91]
[1762677599681,66.98746859,159.26,159.24,3.05074565]
[1762677599880,4.56746859,159.25,159.24,3.05074565]
[1762677601772,4.56746859,159.25,159.24,8.70394565]
[1762677602082,62.42,159.26,159.25,2.9]
[1762677602375,5.85469381,159.33,159.26,2.9]
[1762677602682,62.42,159.34,159.26,2.9]
[1762677602875,4.56856128,159.33,159.26,2.9]
[1762677603076,62.42,159.34,159.26,2.9]
[1762677603478,0.03974202,159.32,159.29,2.9]
[1762677605186,0.03974202,159.32,159.31,2.9]
[1762677606689,62.42,159.34,159.33,2.9]
[1762677606690,62.32334687,159.34,159.33,2.9]
[1762677607287,62.4,159.38,159.36,2.9]
[1762677609089,62.4,159.38,159.37,2.9]
[1762677611888,0.04368229,159.39,159.37,2.9]
[1762677612388,0.04368229,159.39,159.38,8.5482]
[1762677620102,0.04368229,159.39,159.38,2.9]
[1762677621496,62.38,159.42,159.38,2.9]
[1762677622000,62.38,159.42,159.41,2.9]
[1762677623195,0.04124461,159.43,159.41,2.9]
[1762677624095,0.04124461,159.43,159.42,2.9]
[1762677627403,0.04124461,159.43,159.4,2.94344046]
[1762677640110,0.04124461,159.43,159.42,3.02]
[1762677640304,18.86,159.53,159.42,3.02]
[1762677640305,62.34,159.48,159.42,3.02]
[1762677640710,62.34,159.48,159.45,3.02]
[1762677641306,62.38445761,159.48,159.45,3.06613747]
[1762677642118,68.02915761,159.48,159.45,3.06613747]
[1762677642616,62.38445761,159.48,159.45,3.06613747]
[1762677644126,68.02915761,159.48,159.45,3.06613747]
[1762677646914,5.6451,159.47,159.45,0.04613747]
[1762677647308,10.17890927,159.47,159.45,0.04613747]
[1762677647508,5.6451,159.47,159.45,0.04613747]
[1762677647818,4.53407987,159.46,159.45,0.04613747]
[1762677648627,4.53407987,159.46,159.41,3.07]
[1762677648813,4.53407987,159.47,159.41,3.07]
[1762677649015,4.53407987,159.46,159.41,3.07]
[1762677649321,62.38445761,159.48,159.41,3.07]
[1762677649515,4.53862632,159.47,159.43,0.04558334]
[1762677649714,4.53862632,159.46,159.43,0.04558334]
[1762677649916,62.38445761,159.48,159.43,0.04558334]
[1762677650108,5.6458,159.45,159.43,0.04558334]
[1762677656825,62.38445761,159.48,159.43,3.11558334]
[1762677657025,4.55211131,159.47,159.43,3.11558334]
[1762677657327,4.55211131,159.46,159.43,3.11558334]
[1762677657518,62.38445761,159.48,159.43,3.11558334]
[1762677657816,4.55319406,159.47,159.43,3.11558334]
[1762677658015,4.55319406,159.46,159.43,3.11558334]
[1762677658211,5.6451,159.47,159.43,3.11558334]
[1762677658416,4.5536904,159.46,159.43,3.11558334]
[1762677658616,5.6451,159.47,159.43,3.11558334]
[1762677658818,4.55362272,159.46,159.43,3.11558334]
[1762677659020,5.6451,159.47,159.44,3.07]
[1762677659225,4.55362272,159.46,159.44,3.07]
[1762677659426,62.38445761,159.48,159.44,3.07]
[1762677659626,4.55328647,159.47,159.44,3.07]
[1762677659928,62.38445761,159.48,159.45,3.07]
[1762677660124,4.55330567,159.47,159.45,3.07]
[1762677660329,62.38445761,159.48,159.45,3.07]
[1762677660530,4.55347972,159.47,159.46,3.07]
[1762677661531,4.55343066,159.47,159.44,3.07]
[1762677661731,68.02915761,159.48,159.44,3.07]
[1762677662036,4.55332863,159.47,159.43,0.04558334]
[1762677662327,62.38445761,159.48,159.43,0.04558334]
[1762677662328,4.55332863,159.46,159.43,3.21558334]
[1762677662523,62.38445761,159.48,159.43,3.21558334]
[1762677662719,4.55401924,159.47,159.43,3.21558334]
[1762677662924,9.14095721,159.46,159.43,3.21558334]
[1762677663126,4.58693797,159.45,159.43,3.21558334]
[1762677663326,4.58693797,159.44,159.43,3.21558334]
[1762677668925,4.55462996,159.47,159.44,3.17]
[1762677669134,9.14198244,159.46,159.44,3.17]
[1762677669324,4.58735248,159.45,159.44,3.17]
[1762677669936,62.38445761,159.48,159.44,3.17]
[1762677670140,4.5545474,159.47,159.44,3.17]
[1762677670437,62.38445761,159.48,159.44,3.17]
[1762677670638,4.554302,159.47,159.44,3.17]
[1762677670840,62.38445761,159.48,159.44,3.17]
[1762677671033,4.55457381,159.47,159.44,3.17]
[1762677671233,4.55457381,159.46,159.44,3.17]
[1762677671429,62.38445761,159.48,159.43,0.04558334]
[1762677671635,4.55472525,159.47,159.43,3.21558334]
[1762677671836,62.38445761,159.48,159.44,3.17]
[1762677672037,4.56935909,159.47,159.44,3.17]
[1762677672238,62.38445761,159.48,159.44,3.17]
[1762677672438,4.56905958,159.47,159.44,3.17]
[1762677672739,62.38445761,159.48,159.44,3.17]
[1762677672939,4.56905958,159.47,159.44,8.816]
[1762677673139,62.38445761,159.48,159.45,3.17]
[1762677673330,4.5689059,159.47,159.45,3.17]
[1762677673530,62.38445761,159.48,159.45,3.17]
[1762677673736,4.5689059,159.47,159.45,3.17]
[1762677673931,62.38445761,159.48,159.45,3.17]
[1762677674134,4.5689059,159.47,159.45,3.17]
[1762677674436,62.38445761,159.48,159.45,3.17]
[1762677674737,4.56880504,159.47,159.45,3.17]
[1762677674931,62.38445761,159.48,159.45,3.17]
[1762677675131,4.56880504,159.47,159.45,3.17]
[1762677675335,62.38445761,159.48,159.45,3.17]
[1762677675533,4.56875775,159.47,159.45,3.17]
[1762677675732,62.38445761,159.48,159.45,3.17]
[1762677675933,4.56875775,159.47,159.45,3.17]
[1762677676135,62.38445761,159.48,159.45,3.17]
[1762677676335,4.56876137,159.47,159.45,3.17]
[1762677676536,62.38445761,159.48,159.45,3.17]
[1762677676735,4.56876137,159.47,159.45,3.17]
[1762677676936,62.38445761,159.48,159.45,3.17]
[1762677677333,8.99050004,159.47,159.45,3.17]
[1762677677629,62.38445761,159.48,159.45,3.17]
[1762677677834,4.4216841,159.47,159.46,3.17]
[1762677678032,62.38445761,159.48,159.45,5.6457]
[1762677678238,62.38445761,159.48,159.46,3.17]
[1762677679136,62.38445761,159.48,159.43,0.04558334]
[1762677679137,4.568409,159.47,159.43,0.04558334]
[1762677679340,8.99035158,159.46,159.43,3.21558334]
[1762677679544,4.42187471,159.45,159.43,3.21558334]
[1762677679744,0.04445761,159.48,159.43,3.21558334]
[1762677680045,8.99153894,159.47,159.43,3.21558334]
[1762677680240,8.99153894,159.46,159.43,3.21558334]
[1762677680441,0.04445761,159.48,159.43,3.21558334]
[1762677681350,0.04445761,159.48,159.46,3.17]
[1762677682543,0.04445761,159.48,159.46,8.8153]
[1762677684349,0.04445761,159.48,159.47,3.17]
[1762677684543,4.46523529,159.48,159.47,3.17]
[1762677685249,0.04445761,159.48,159.47,3.17]
[1762677686049,0.04445761,159.48,159.44,3.17]
[1762677686250,4.42059481,159.47,159.44,3.17]
[1762677686445,0.04445761,159.48,159.44,3.17]
[1762677686649,4.42048748,159.47,159.44,3.17]
[1762677686851,0.04445761,159.48,159.44,3.17]
[1762677687152,4.42048748,159.47,159.46,3.17]
[1762677687450,4.42048748,159.47,159.45,8.8157]
[1762677687650,0.04445761,159.48,159.46,3.17]
[1762677687853,4.42037109,159.47,159.46,3.17]
[1762677689548,0.04445761,159.48,159.46,3.17]
[1762677693261,8.98642328,159.47,159.44,2.99]
[1762677693553,0.04445761,159.48,159.44,2.99]
[1762677693753,8.98745416,159.47,159.44,2.99]
[1762677693954,4.42038625,159.46,159.44,2.99]
[1762677694157,5.6451,159.47,159.44,2.99]
[1762677694358,4.420527,159.46,159.44,2.99]
[1762677694554,5.6451,159.47,159.44,2.99]
[1762677694755,8.9880251,159.46,159.44,2.99]
[1762677694952,5.6451,159.47,159.44,2.99]
[1762677695153,8.9880251,159.46,159.44,2.99]
[1762677695356,5.6451,159.47,159.44,2.99]
[1762677695657,8.98857634,159.46,159.44,2.99]
[1762677695856,5.6451,159.47,159.44,2.99]
[1762677696056,14.63412431,159.46,159.43,0.04558334]
[1762677696256,4.42096366,159.45,159.43,0.04558334]
[1762677696447,5.6455,159.46,159.43,3.03558334]
[1762677696653,4.42165104,159.45,159.43,3.03558334]
[1762677696854,5.6455,159.46,159.43,3.03558334]
[1762677697560,10.06773252,159.45,159.43,0.04558334]
[1762677697758,5.6458,159.45,159.43,0.04558334]
[1762677700266,0.04445761,159.48,159.44,2.99]
[1762677702057,0.04445761,159.48,159.45,8.6357]
[1762677703463,0.04445761,159.48,159.46,2.99]
[1762677705952,4.42102815,159.47,159.43,0.04558334]
[1762677706156,8.98421981,159.46,159.43,3.05558334]
[1762677706359,0.04445761,159.48,159.43,3.05558334]
[1762677706661,14.62925076,159.47,159.43,3.05558334]
[1762677706857,8.98415076,159.46,159.43,3.05558334]
[1762677707057,5.6451,159.47,159.43,3.05558334]
[1762677707260,8.9845381,159.46,159.44,3.01]
[1762677707458,5.6451,159.47,159.44,3.01]
[1762677707659,8.97889228,159.46,159.44,3.01]
[1762677707861,5.6451,159.47,159.44,3.01]
[1762677708162,8.97889228,159.46,159.44,3.01]
[1762677708365,5.6451,159.47,159.44,3.01]
[1762677708561,8.97901604,159.46,159.43,5.69198334]
[1762677708765,0.04445761,159.48,159.43,0.04558334]
[1762677708766,8.97959307,159.45,159.43,0.04558334]
[1762677708966,0.04445761,159.48,159.43,0.04558334]
[1762677709166,5.6459,159.45,159.43,0.04558334]
[1762677709363,4.41645284,159.44,159.43,0.04558334]
[1762677712160,4.41645284,159.44,159.43,3.05558334]
[1762677712370,0.04445761,159.48,159.43,3.05558334]
[1762677712668,8.97758682,159.47,159.43,3.05558334]
[1762677712971,4.41510275,159.46,159.43,3.05558334]
[1762677713165,0.04445761,159.48,159.43,3.05558334]
[1762677713371,8.97793489,159.47,159.44,3.01]
[1762677713670,4.41534091,159.46,159.44,3.01]
[1762677713884,0.04445761,159.48,159.44,3.01]
[1762677714071,8.97793489,159.47,159.44,3.01]
[1762677714272,4.41534091,159.46,159.44,3.01]
[1762677714571,0.04445761,159.48,159.44,3.01]
[1762677714864,8.97808727,159.47,159.44,3.01]
[1762677715073,4.41541565,159.46,159.44,3.01]
[1762677715266,5.6451,159.47,159.44,3.01]
[1762677715469,4.41546399,159.46,159.44,3.01]
[1762677715663,5.6451,159.47,159.44,3.01]
[1762677715864,4.41546399,159.46,159.44,3.01]
[1762677716060,5.6451,159.47,159.44,3.01]
[1762677716264,4.41546399,159.46,159.44,3.01]
[1762677716565,0.04445761,159.48,159.44,3.01]
[1762677716760,8.97830582,159.47,159.44,3.01]
[1762677717070,4.41552331,159.46,159.44,3.01]
[1762677717274,0.04445761,159.48,159.44,3.01]
[1762677717468,8.97826327,159.47,159.44,3.01]
[1762677717665,4.41550173,159.46,159.44,3.01]
[1762677717861,0.04445761,159.48,159.44,3.01]
[1762677718065,8.97826327,159.47,159.44,3.01]
[1762677718266,4.41550173,159.46,159.44,3.01]
[1762677718468,5.68915761,159.48,159.44,3.01]
[1762677718670,8.97797634,159.47,159.44,3.01]
[1762677718966,4.41533359,159.46,159.44,3.01]
[1762677719167,5.68915761,159.48,159.44,3.01]
[1762677719367,8.97796682,159.47,159.44,3.01]
[1762677719566,4.41532903,159.46,159.44,3.01]
[1762677719771,5.68915761,159.48,159.44,3.01]
[1762677719967,8.97796682,159.47,159.44,3.01]
[1762677720170,4.41532903,159.46,159.44,3.01]
[1762677720476,4.41540744,159.45,159.44,3.01]
[1762677720776,8.97825771,159.45,159.43,3.05558334]
[1762677721077,0.04445761,159.48,159.43,3.05558334]
[1762677721274,5.6455,159.46,159.43,3.05558334]
[1762677721467,8.97843077,159.45,159.43,3.05558334]
[1762677721667,5.6455,159.46,159.43,3.05558334]
[1762677721864,8.97815203,159.45,159.43,3.05558334]
[1762677722073,5.6455,159.46,159.43,3.05558334]
[1762677722266,4.41551096,159.45,159.43,3.05558334]
[1762677722468,8.97810773,159.44,159.43,0.04558334]
[1762677724477,8.97810773,159.44,159.37,3.03]
[1762677724775,8.97810773,159.43,159.37,3.03]
[1762677724980,8.97810773,159.42,159.37,3.03]
[1762677725181,5.86536876,159.46,159.37,3.03]
[1762677725382,14.84113198,159.45,159.37,3.03]
[1762677725583,0.0480342,159.43,159.4,0.04356445]
[1762677725783,8.97576322,159.42,159.4,0.04356445]
[1762677725982,8.97576322,159.41,159.4,0.04356445]
[1762677727584,4.4155741,159.41,159.4,0.04356445]
[1762677727976,5.6468,159.42,159.4,0.04356445]
[1762677728381,10.20229911,159.42,159.4,0.04356445]
[1762677729184,5.6468,159.42,159.4,0.04356445]
[1762677729384,10.20146909,159.42,159.4,0.04356445]
[1762677729787,4.40827225,159.41,159.4,0.04356445]
[1762677730082,8.96341832,159.41,159.35,3.03]
[1762677730283,4.55380173,159.42,159.35,3.03]
[1762677730486,8.96152289,159.41,159.35,3.03]
[1762677730680,5.648,159.39,159.35,3.03]
[1762677731084,0.04381128,159.39,159.35,3.07809825]
[1762677731287,0.04381128,159.39,159.35,8.72729825]
[1762677731488,0.04381128,159.39,159.36,3.03]
[1762677735691,5.69171128,159.39,159.36,3.03]
[1762677737990,0.04381128,159.39,159.35,0.04809825]
[1762677738893,4.46235231,159.39,159.35,0.04809825]
[1762677739094,5.6486,159.37,159.35,0.04809825]
[1762677739794,4.41854103,159.36,159.29,3.03]
[1762677740089,8.97096184,159.38,159.29,3.03]
[1762677740289,8.97096184,159.39,159.29,3.03]
[1762677740497,5.6491,159.36,159.32,3.03]
[1762677740689,5.69237389,159.36,159.32,3.0732055]
[1762677741694,0.04327389,159.36,159.33,3.03]
[1762677742987,0.04327389,159.36,159.34,5.6496]
[1762677743187,0.04327389,159.36,159.35,3.03]
[1762677764401,0.04327389,159.36,159.34,2.92]
[1762677764702,4.59071913,159.36,159.32,2.9632055]
[1762677765002,8.98132126,159.35,159.32,0.0432055]
[1762677765199,8.98132126,159.34,159.32,0.0432055]
[1762677765404,4.55379919,159.35,159.32,0.0432055]
[1762677765604,8.98001528,159.34,159.32,0.0432055]
[1762677765798,5.6497,159.34,159.32,0.0432055]
[1762677765999,4.42632154,159.33,159.32,0.0432055]
[1762677766307,8.98073745,159.33,159.27,3.05]
[1762677766500,8.98073745,159.32,159.27,3.05]
[1762677766803,4.55441591,159.35,159.28,3.05]
[1762677767014,8.98033998,159.34,159.28,3.05]
[1762677767208,9.02417485,159.33,159.29,0.04293974]
[1762677767408,8.98033998,159.32,159.29,0.04293974]
[1762677767614,4.55441591,159.32,159.29,0.04293974]
[1762677768510,8.95713648,159.32,159.29,0.04293974]
[1762677769111,0.04383487,159.33,159.29,0.04293974]
[1762677769508,5.6504,159.32,159.29,0.04293974]
[1762677779917,0.04383487,159.33,159.29,3.09293974]
[1762677781523,5.69383487,159.33,159.29,8.74423974]
[1762677781722,5.69383487,159.33,159.3,3.13]
[1762677782325,0.04383487,159.33,159.3,3.13]
[1762677785124,0.04383487,159.33,159.29,0.04293974]
[1762677785524,4.44009219,159.33,159.29,0.04293974]
[1762677785722,0.04383487,159.33,159.29,0.04293974]
[1762677785922,4.44009219,159.33,159.29,0.04293974]
[1762677786124,0.04383487,159.33,159.29,0.04293974]
[1762677786820,0.04383487,159.33,159.29,3.17293974]
[1762677787422,0.04383487,159.33,159.29,8.82433974]
[1762677787722,0.04383487,159.33,159.3,3.13]
[1762677789321,5.69393487,159.33,159.3,3.13]
[1762677796632,10.09910885,159.33,159.3,3.13]
[1762677796833,5.69393487,159.33,159.3,3.13]
[1762677800635,4.40754599,159.32,159.3,3.13]
[1762677800834,5.69393487,159.33,159.3,3.13]
[1762677801530,4.40754785,159.32,159.3,3.13]
[1762677801734,5.69393487,159.33,159.3,3.13]
[1762677801935,4.40770014,159.32,159.3,3.13]
[1762677802137,5.69393487,159.33,159.3,3.13]
[1762677802337,4.40762499,159.32,159.3,3.13]
[1762677802531,5.69393487,159.33,159.3,3.13]
[1762677802744,4.40770844,159.32,159.3,3.13]
[1762677803054,5.69393487,159.33,159.3,3.13]
[1762677803240,4.40781622,159.32,159.3,3.13]
[1762677803442,5.69393487,159.33,159.3,3.13]
[1762677803640,4.40547352,159.32,159.3,3.13]
[1762677803838,5.69393487,159.33,159.3,3.13]
[1762677804042,4.40451598,159.32,159.3,3.13]
[1762677804243,5.69393487,159.33,159.3,3.13]
[1762677804449,4.40493621,159.32,159.3,3.13]
[1762677804649,5.69393487,159.33,159.3,3.13]
[1762677804849,4.40612487,159.32,159.3,3.13]
[1762677805049,5.69393487,159.33,159.3,3.13]
[1762677805249,4.40659097,159.32,159.3,3.13]
[1762677805449,5.69393487,159.33,159.3,3.13]
[1762677805648,4.40714989,159.32,159.3,3.13]
[1762677805848,5.69393487,159.33,159.3,3.13]
[1762677806048,0.04383487,159.33,159.3,3.13]
[1762677808053,4.40845325,159.32,159.3,3.13]
[1762677808354,0.04383487,159.33,159.3,3.13]
[1762677808651,4.41032944,159.32,159.3,3.13]
[1762677808852,0.04383487,159.33,159.3,3.13]
[1762677809051,4.41047731,159.32,159.3,3.13]
[1762677809358,0.04383487,159.33,159.3,3.13]
[1762677809550,4.41259469,159.32,159.3,3.13]
[1762677809850,0.04383487,159.33,159.3,8.781]